bitfinex-derivatives/quotes_BNBF0:USTF0_20250220
["timestamp","ask_amount","ask_price","bid_price","bid_amount"]
[1740075477447,3.0812046,653.6,652.57,1.13018886]
[1740075477747,3.0812046,653.59,652.57,1.13018886]
[1740075477945,3.0812046,653.58,652.57,1.13018886]
[1740075478151,3.0812046,653.57,652.57,1.13018886]
[1740075478450,3.0812046,653.56,652.57,1.13018886]
[1740075478650,3.0812046,653.55,652.57,1.13018886]
[1740075478851,3.0812046,653.54,652.57,1.13018886]
[1740075479148,3.0812046,653.53,652.57,1.13018886]
[1740075479351,2.20011477,653.56,652.57,1.13018886]
[1740075479552,3.08120869,653.55,652.57,1.13018886]
[1740075479854,3.08120869,653.54,652.86,1.13018886]
[1740075480054,3.08120869,653.53,652.86,1.13018886]
[1740075480249,3.08120869,653.52,652.86,1.13018886]
[1740075480453,2.20011477,653.53,652.86,1.13018886]
[1740075481758,3.08102073,653.52,652.86,1.13018886]
[1740075481958,3.08102073,653.52,652.99,1.13018886]
[1740075481959,3.08102073,653.51,652.99,1.13018886]
[1740075482259,3.08102073,653.5,652.99,1.13018886]
[1740075482553,2.20011477,653.52,652.99,1.13018886]
[1740075482554,3.08102073,653.49,652.99,1.13018886]
[1740075482860,3.08102073,653.48,652.99,1.13018886]
[1740075483059,3.08102073,653.47,652.99,1.13018886]
[1740075483254,3.08102073,653.46,652.99,1.13018886]
[1740075483460,3.08102073,653.45,652.99,1.13018886]
[1740075483655,3.08102073,653.44,652.99,1.13018886]
[1740075483861,3.08102073,653.43,652.99,1.13018886]
[1740075484059,3.08102073,653.42,652.99,1.13018886]
[1740075484260,3.08102073,653.41,652.99,1.13018886]
[1740075484464,3.08102073,653.4,652.99,1.13018886]
[1740075484762,3.08102073,653.39,652.99,1.13018886]
[1740075484960,3.08102073,653.38,652.99,1.13018886]
[1740075485162,2.20011477,653.4,652.99,1.13018886]
[1740075485456,2.20011477,653.4,652.5,0.81690523]
[1740075485457,3.08148378,653.39,652.88,1.13018886]
[1740075485762,2.20011477,653.4,652.88,1.13018886]
[1740075485961,3.08188118,653.39,652.88,1.13018886]
[1740075486162,3.08199372,653.38,652.88,1.13018886]
[1740075486359,1.711,653.59,652.88,1.13018886]
[1740075486562,3.08236996,653.58,652.88,1.13018886]
[1740075486866,5.28314801,653.57,652.88,1.13018886]
[1740075487163,3.08236996,653.56,652.88,1.13018886]
[1740075487363,3.08236996,653.55,652.88,1.13018886]
[1740075487562,3.08236996,653.54,652.88,1.13018886]
[1740075487762,3.08236996,653.53,652.88,1.13018886]
[1740075488057,5.28314801,653.52,652.88,1.13018886]
[1740075488262,3.08236996,653.51,652.88,1.13018886]
[1740075488463,3.08236996,653.5,652.88,1.13018886]
[1740075488662,3.08236996,653.49,652.88,1.13018886]
[1740075488855,3.08236996,653.48,652.88,1.13018886]
[1740075489059,3.08236996,653.47,652.88,1.13018886]
[1740075489262,3.08236996,653.46,652.88,1.13018886]
[1740075489463,3.08236996,653.45,652.88,1.13018886]
[1740075489660,3.08236996,653.44,652.88,1.13018886]
[1740075489861,3.08236996,653.43,652.88,1.13018886]
[1740075490064,3.08236996,653.42,652.88,1.13018886]
[1740075490364,2.20077805,653.52,652.88,1.13018886]
[1740075490365,3.08236996,653.41,652.88,1.13018886]
[1740075490659,1.711,653.59,652.88,1.13018886]
[1740075490660,3.08236996,653.4,652.88,1.13018886]
[1740075490864,2.20077805,653.42,652.88,1.13018886]
[1740075490865,3.08236996,653.39,652.88,1.13018886]
[1740075491164,3.08236996,653.38,652.88,1.13018886]
[1740075491464,3.08236996,653.37,652.88,1.13018886]
[1740075491664,3.08236996,653.37,652.5,0.81690523]
[1740075491665,3.08236996,653.36,652.85,1.13018886]
[1740075491865,2.20077805,653.42,652.85,1.13018886]
[1740075492065,3.08608925,653.41,652.85,1.13018886]
[1740075492265,3.08608925,653.4,652.85,1.13018886]
[1740075492566,3.08608925,653.39,652.85,1.13018886]
[1740075492767,3.08608925,653.38,652.85,1.13018886]
[1740075492966,3.08608925,653.37,652.85,1.13018886]
[1740075493161,3.08608925,653.36,652.85,1.13018886]
[1740075493364,3.08608925,653.35,652.85,1.13018886]
[1740075493561,2.20077805,653.38,652.85,1.13018886]
[1740075493766,3.08798781,653.37,652.85,1.13018886]
[1740075493966,3.08798781,653.36,652.85,1.13018886]
[1740075494169,2.20077805,653.38,652.85,1.13018886]
[1740075494468,3.08817951,653.37,652.85,1.13018886]
[1740075494668,3.08817951,653.36,652.85,1.13018886]
[1740075494869,2.20077805,653.37,652.85,1.13018886]
[1740075495070,2.20077805,653.37,652.93,1.13018886]
[1740075495266,3.0891605,653.36,652.93,1.13018886]
[1740075495463,2.20077805,653.37,652.93,1.13018886]
[1740075495761,3.09012944,653.36,652.93,1.13018886]
[1740075495966,2.20077805,653.37,652.93,1.13018886]
[1740075496366,1.711,653.59,652.93,1.13018886]
[1740075496563,3.09126444,653.58,652.93,1.13018886]
[1740075496768,3.09126444,653.57,652.93,1.13018886]
[1740075497068,3.09126444,653.56,652.93,1.13018886]
[1740075497368,3.09126444,653.55,652.93,1.13018886]
[1740075497666,3.09126444,653.54,652.98,1.13018886]
[1740075497866,3.09126444,653.53,652.98,1.13018886]
[1740075498062,3.09126444,653.52,652.98,1.13018886]
[1740075498266,3.09126444,653.51,652.98,1.13018886]
[1740075498569,3.09126444,653.5,652.98,1.13018886]
[1740075498870,3.09126444,653.49,652.98,1.13018886]
[1740075499070,3.09126444,653.48,652.98,1.13018886]
[1740075499271,3.09126444,653.47,652.98,1.13018886]
[1740075499569,3.09126444,653.46,652.98,1.13018886]
[1740075499762,3.09126444,653.45,652.98,1.13018886]
[1740075499963,2.2071481,653.51,652.98,1.13018886]
[1740075500167,3.09610912,653.5,652.98,1.13018886]
[1740075500362,2.2071481,653.5,652.98,1.13018886]
[1740075501166,2.2071481,653.5,652.91,1.13018886]
[1740075501464,2.2071481,653.49,652.91,1.13018886]
[1740075503274,2.2071481,653.48,652.91,1.13018886]
[1740075503775,2.2071481,653.48,652.89,1.13018886]
[1740075504275,3.10448795,653.47,652.89,1.13018886]
[1740075504575,3.10448795,653.46,652.89,1.13018886]
[1740075504774,3.10448795,653.45,652.89,1.13018886]
[1740075504975,2.2071481,653.46,652.89,1.13018886]
[1740075505274,3.10599972,653.45,652.89,1.13018886]
[1740075505474,3.10756629,653.44,652.89,1.13018886]
[1740075505775,2.2071481,653.46,652.89,1.13018886]
[1740075505975,3.10755952,653.45,652.89,1.13018886]
[1740075506170,3.10755952,653.44,652.89,1.13018886]
[1740075506474,2.2071481,653.45,652.89,1.13018886]
[1740075506676,3.10819223,653.44,652.89,1.13018886]
[1740075506975,2.2071481,653.45,652.89,1.13018886]
[1740075507276,3.10819275,653.44,653.07,1.13018886]
[1740075507471,2.2071481,653.45,653.07,1.13018886]
[1740075507674,3.10882778,653.44,653.07,1.13018886]
[1740075507874,3.10882778,653.43,653.07,1.13018886]
[1740075508072,3.10882778,653.42,653.07,1.13018886]
[1740075508274,3.10882778,653.41,653.07,1.13018886]
[1740075508481,2.2071481,653.43,653.07,1.13018886]
[1740075508676,3.10951629,653.42,653.07,1.13018886]
[1740075508878,3.10951629,653.41,653.07,1.13018886]
[1740075509072,3.10957134,653.4,653.07,1.13018886]
[1740075509275,2.2071481,653.43,653.07,1.13018886]
[1740075509478,3.10960778,653.42,653.07,1.13018886]
[1740075509674,3.10960778,653.41,653.07,1.13018886]
[1740075509879,3.10960778,653.4,653.05,1.13018886]
[1740075510083,3.11005407,653.39,653.05,1.13018886]
[1740075510380,2.2071481,653.42,653.05,1.13018886]
[1740075510681,3.11030603,653.41,653.05,1.13018886]
[1740075510905,3.11030603,653.4,653.05,1.13018886]
[1740075511179,2.2071481,653.42,653.05,1.13018886]
[1740075511380,3.11041671,653.41,653.05,1.13018886]
[1740075511580,3.11041671,653.4,653.05,1.13018886]
[1740075511880,2.2071481,653.41,653.05,1.13018886]
[1740075512082,3.11074775,653.4,653.05,1.13018886]
[1740075512280,3.11074775,653.39,653.05,1.13018886]
[1740075512482,2.2071481,653.41,653.15,1.13018886]
[1740075512682,3.11078513,653.4,653.15,1.13018886]
[1740075512883,3.11078513,653.39,653.15,1.13018886]
[1740075513182,3.11078513,653.38,653.15,1.13018886]
[1740075513380,2.2071481,653.41,653.15,1.13018886]
[1740075513580,2.2071481,653.38,653.15,1.13018886]
[1740075515184,3.3,653.77,653.15,1.13018886]
[1740075515377,3.11085687,653.76,653.15,1.13018886]
[1740075515580,3.3,653.77,653.15,1.13018886]
[1740075515581,3.11085687,653.75,653.15,1.13018886]
[1740075515778,3.11085687,653.75,652.58,2.30642502]
[1740075515779,3.11085687,653.74,652.9,1.13018886]
[1740075516078,3.11085687,653.73,652.9,1.13018886]
[1740075516280,2.22108408,653.74,652.9,1.13018886]
[1740075516281,3.11085687,653.72,652.9,1.13018886]
[1740075516481,3.11085687,653.71,652.9,1.13018886]
[1740075516777,3.11085687,653.7,652.9,1.13018886]
[1740075516982,3.11085687,653.69,652.9,1.13018886]
[1740075517178,3.11085687,653.68,652.9,1.13018886]
[1740075517386,3.11085687,653.67,652.9,1.13018886]
[1740075517587,3.11085687,653.66,652.9,1.13018886]
[1740075517787,3.11085687,653.65,652.9,1.13018886]
[1740075517987,3.11085687,653.64,652.9,1.13018886]
[1740075518287,3.11085687,653.63,652.9,1.13018886]
[1740075518483,3.11085687,653.62,652.9,1.13018886]
[1740075518687,3.11085687,653.61,652.9,1.13018886]
[1740075518988,3.11085687,653.6,652.9,1.13018886]
[1740075519184,3.11085687,653.59,652.9,1.13018886]
[1740075519389,3.11085687,653.58,652.9,1.13018886]
[1740075519587,3.11085687,653.57,652.9,1.13018886]
[1740075519791,3.11085687,653.56,652.9,1.13018886]
[1740075520091,2.22108408,653.66,652.36,1.35561307]
[1740075520092,5.33194095,653.55,652.89,1.13018886]
[1740075520291,3.11085687,653.54,652.89,1.13018886]
[1740075520490,3.11085687,653.53,652.89,1.13018886]
[1740075520693,3.11085687,653.52,652.89,1.13018886]
[1740075520995,3.11085687,653.51,652.89,1.13018886]
[1740075521192,3.11085687,653.5,652.89,1.13018886]
[1740075521491,3.11085687,653.49,652.89,1.13018886]
[1740075521689,3.11085687,653.48,652.89,1.13018886]
[1740075521891,3.11085687,653.47,652.89,1.13018886]
[1740075522090,3.11085687,653.46,652.89,1.13018886]
[1740075522286,3.11085687,653.45,652.89,1.13018886]
[1740075522591,3.11085687,653.44,652.89,1.13018886]
[1740075522791,3.11085687,653.43,652.89,1.13018886]
[1740075522993,3.11085687,653.42,652.89,1.13018886]
[1740075523190,3.11085687,653.41,652.89,1.13018886]
[1740075523386,3.11085687,653.4,652.89,1.13018886]
[1740075523591,3.11085687,653.39,652.89,1.13018886]
[1740075523790,3.11085687,653.38,652.89,1.13018886]
[1740075523992,3.11085687,653.37,652.89,1.13018886]
[1740075524188,2.22108408,653.45,652.89,1.13018886]
[1740075524387,1.715,653.75,652.89,1.13018886]
[1740075524588,3.11120436,653.74,652.89,1.13018886]
[1740075524788,5.33279834,653.73,652.89,1.13018886]
[1740075524992,3.11120436,653.72,652.89,1.13018886]
[1740075525192,3.11120436,653.71,652.89,1.13018886]
[1740075525393,3.11120436,653.71,652.24,2.30642502]
[1740075525394,3.11120436,653.7,652.88,1.13018886]
[1740075525593,3.11120436,653.69,652.88,1.13018886]
[1740075525793,3.11120436,653.68,652.88,1.13018886]
[1740075525992,3.11120436,653.67,652.88,1.13018886]
[1740075526193,3.11120436,653.66,652.88,1.13018886]
[1740075526393,3.11120436,653.65,652.88,1.13018886]
[1740075526594,3.11120436,653.64,652.88,1.13018886]
[1740075526792,3.11120436,653.63,652.88,1.13018886]
[1740075526993,3.11120436,653.62,652.88,1.13018886]
[1740075527193,3.11120436,653.61,652.88,1.13018886]
[1740075527393,3.11120436,653.6,652.88,1.13018886]
[1740075527593,3.11120436,653.59,652.88,1.13018886]
[1740075527793,3.11120436,653.58,652.88,1.13018886]
[1740075527989,3.11120436,653.57,652.88,1.13018886]
[1740075528189,5.33279834,653.56,652.88,1.13018886]
[1740075528499,3.11120436,653.55,652.58,1.13018886]
[1740075528693,3.11120436,653.54,652.58,1.13018886]
[1740075528891,3.11120436,653.53,652.58,1.13018886]
[1740075529092,3.11120436,653.52,652.58,1.13018886]
[1740075529294,3.11120436,653.51,652.58,1.13018886]
[1740075529495,3.11120436,653.5,652.58,1.13018886]
[1740075529691,3.11120436,653.49,652.58,1.13018886]
[1740075529895,2.22159398,653.56,652.58,1.13018886]
[1740075530095,4.25167164,653.55,652.58,1.13018886]
[1740075530296,3.11067164,653.54,652.82,1.13018886]
[1740075530495,3.11067164,653.53,652.82,1.13018886]
[1740075530700,3.11067164,653.52,652.82,1.13018886]
[1740075530896,3.11067164,653.51,652.82,1.13018886]
[1740075531091,3.11067164,653.5,652.82,1.13018886]
[1740075531296,3.36259398,653.55,652.82,1.13018886]
[1740075531496,3.11078753,653.54,652.82,1.13018886]
[1740075531697,3.11078753,653.53,652.82,1.13018886]
[1740075531892,3.11078753,653.52,652.82,1.13018886]
[1740075532094,3.11078753,653.51,652.82,1.13018886]
[1740075532299,3.11078753,653.5,652.82,1.13018886]
[1740075532597,3.11078753,653.49,652.82,1.13018886]
[1740075532802,3.11078753,653.48,652.82,1.13018886]
[1740075532997,3.11078753,653.47,652.82,1.13018886]
[1740075533201,3.11078753,653.46,652.82,1.13018886]
[1740075533396,3.11078753,653.45,652.82,1.13018886]
[1740075533596,3.11078753,653.44,652.82,1.13018886]
[1740075533800,3.11078753,653.43,652.82,1.13018886]
[1740075534001,3.11078753,653.42,652.82,1.13018886]
[1740075534201,3.11078753,653.41,652.82,1.13018886]
[1740075534505,3.11078753,653.4,652.82,1.13018886]
[1740075534803,2.22159398,653.43,652.32,1.12967756]
[1740075534804,3.11080592,653.39,652.98,1.13018886]
[1740075534998,2.22159398,653.43,652.98,1.13018886]
[1740075535204,3.11080761,653.42,652.98,1.13018886]
[1740075535401,3.11080761,653.41,652.98,1.13018886]
[1740075535706,3.11080761,653.4,652.98,1.13018886]
[1740075535903,2.22159398,653.4,652.98,1.13018886]
[1740075536402,3.11162241,653.39,652.98,1.13018886]
[1740075536708,2.22159398,653.4,652.98,1.13018886]
[1740075537005,3.11162894,653.39,652.98,1.13018886]
[1740075537208,2.22159398,653.4,652.98,1.13018886]
[1740075537501,3.11196464,653.39,652.98,1.13018886]
[1740075537708,3.11196464,653.39,652.5,0.82035098]
[1740075537709,2.22159398,653.39,652.87,1.13018886]
[1740075539301,1.141,653.55,652.87,1.13018886]
[1740075539506,3.11231694,653.54,652.87,1.13018886]
[1740075539704,3.11231694,653.53,652.87,1.13018886]
[1740075539903,3.11231694,653.52,652.87,1.13018886]
[1740075540104,3.11231694,653.51,652.87,1.13018886]
[1740075540305,3.11231694,653.5,652.87,1.13018886]
[1740075540611,3.11231694,653.49,652.86,1.13018886]
[1740075540910,3.11231694,653.48,652.86,1.13018886]
[1740075541106,3.11231694,653.47,652.86,1.13018886]
[1740075541308,3.11231694,653.46,652.86,1.13018886]
[1740075541604,3.11231694,653.45,652.86,1.13018886]
[1740075541806,3.11231694,653.44,652.86,1.13018886]
[1740075542008,3.11231694,653.43,652.86,1.13018886]
[1740075542204,3.11231694,653.42,652.86,1.13018886]
[1740075542404,3.11231694,653.41,652.86,1.13018886]
[1740075542608,3.11231694,653.4,652.86,1.13018886]
[1740075542804,3.11231694,653.39,652.86,1.13018886]
[1740075543004,3.11231694,653.38,652.86,1.13018886]
[1740075543209,3.11231694,653.37,652.86,1.13018886]
[1740075543410,3.11231694,653.36,652.86,1.13018886]
[1740075543610,3.11231694,653.35,652.86,1.13018886]
[1740075543810,3.11231694,653.34,652.86,1.13018886]
[1740075544013,3.11231694,653.33,652.86,1.13018886]
[1740075544314,1.141,653.55,652.76,1.13018886]
[1740075544315,5.33445271,653.32,652.76,1.13018886]
[1740075544510,2.22213577,653.32,652.76,1.13018886]
[1740075545817,1.141,653.55,652.76,1.13018886]
[1740075546115,3.1111594,653.54,652.76,1.13018886]
[1740075546411,5.33262743,653.53,652.76,1.13018886]
[1740075546616,3.1111594,653.52,652.76,1.13018886]
[1740075546810,3.1111594,653.51,653.13,1.13018886]
[1740075547010,3.1111594,653.5,653.13,1.13018886]
[1740075547314,3.1111594,653.49,653.13,1.13018886]
[1740075547514,3.1111594,653.48,653.13,1.13018886]
[1740075547715,3.1111594,653.47,653.13,1.13018886]
[1740075547914,3.1111594,653.46,653.13,1.13018886]
[1740075548118,3.1111594,653.45,653.13,1.13018886]
[1740075548418,3.1111594,653.44,653.13,1.13018886]
[1740075548715,3.1111594,653.43,653.13,1.13018886]
[1740075548916,3.1111594,653.42,653.13,1.13018886]
[1740075549116,3.1111594,653.41,653.13,1.13018886]
[1740075549314,3.1111594,653.4,653.13,1.13018886]
[1740075549511,3.1111594,653.39,653.13,1.13018886]
[1740075549715,3.1111594,653.38,653.06,1.13018886]
[1740075549910,3.1111594,653.37,653.06,1.13018886]
[1740075550210,3.1111594,653.36,653.06,1.13018886]
[1740075550417,3.1111594,653.35,653.06,1.13018886]
[1740075550718,3.1111594,653.34,653.06,1.13018886]
[1740075550915,3.1111594,653.33,653.06,1.13018886]
[1740075551111,2.22146803,653.34,653.06,1.13018886]
[1740075551112,3.1111594,653.32,653.06,1.13018886]
[1740075551317,3.1111594,653.31,653.06,1.13018886]
[1740075551612,3.1111594,653.3,653.06,1.13018886]
[1740075551817,3.1111594,653.29,653.06,1.13018886]
[1740075552016,3.1111594,653.28,653.06,1.13018886]
[1740075552317,3.1111594,653.27,653.06,1.13018886]
[1740075552518,2.22146803,653.34,653.06,1.13018886]
[1740075552717,3.11031047,653.33,653.06,1.13018886]
[1740075553016,3.11031047,653.32,652.77,1.13018886]
[1740075553217,3.11031047,653.31,652.77,1.13018886]
[1740075553413,3.11031047,653.3,652.77,1.13018886]
[1740075553613,3.11031047,653.29,652.77,1.13018886]
[1740075553815,3.11009899,653.28,652.77,1.13018886]
[1740075554016,2.22146803,653.33,652.77,1.13018886]
[1740075554217,3.11007836,653.32,652.77,1.13018886]
[1740075554418,3.11007836,653.31,652.77,1.13018886]
[1740075554621,2.22146803,653.33,652.77,1.13018886]
[1740075554820,3.10978606,653.32,652.77,1.13018886]
[1740075555013,3.214,653.63,652.77,1.13018886]
[1740075555217,3.10981043,653.62,652.77,1.13018886]
[1740075555521,3.10981043,653.61,652.78,1.13018886]
[1740075555822,3.10981043,653.6,652.78,1.13018886]
[1740075556119,3.10981043,653.59,652.78,1.13018886]
[1740075556320,3.10981043,653.58,652.78,1.13018886]
[1740075556520,3.10981043,653.57,652.78,1.13018886]
[1740075556723,2.22040187,653.61,652.78,1.13018886]
[1740075556724,3.10981043,653.56,652.78,1.13018886]
[1740075557022,3.10981043,653.55,652.78,1.13018886]
[1740075557222,3.10981043,653.54,652.78,1.13018886]
[1740075557521,3.10981043,653.53,652.78,1.13018886]
[1740075557722,3.10981043,653.52,652.78,1.13018886]
[1740075558021,3.10981043,653.51,652.78,1.13018886]
[1740075558221,3.10981043,653.5,652.78,1.13018886]
[1740075558421,3.10981043,653.49,652.78,1.13018886]
[1740075558621,3.10981043,653.48,652.83,1.13018886]
[1740075558821,3.10981043,653.47,652.83,1.13018886]
[1740075559117,3.10981043,653.46,652.83,1.13018886]
[1740075559317,3.10981043,653.45,652.83,1.13018886]
[1740075559516,3.10981043,653.44,652.83,1.13018886]
[1740075559721,3.10981043,653.43,652.83,1.13018886]
[1740075560021,3.10981043,653.42,652.83,1.13018886]
[1740075560219,3.10981043,653.41,652.83,1.13018886]
[1740075560421,3.10981043,653.4,652.83,1.13018886]
[1740075560620,3.10981043,653.39,652.83,1.13018886]
[1740075560815,3.10981043,653.38,652.83,1.13018886]
[1740075561120,3.10981043,653.37,652.83,1.13018886]
[1740075561320,3.10981043,653.36,652.87,1.13018886]
[1740075561521,3.10981043,653.35,652.87,1.13018886]
[1740075561719,3.10981043,653.34,652.87,1.13018886]
[1740075561920,3.10981043,653.33,652.87,1.13018886]
[1740075562121,2.22040187,653.36,652.87,1.13018886]
[1740075562320,3.10966144,653.35,652.87,1.13018886]
[1740075562621,3.10966144,653.34,652.87,1.13018886]
[1740075562823,5.33006331,653.33,652.87,1.13018886]
[1740075563017,3.10966144,653.32,652.87,1.13018886]
[1740075563322,2.22040187,653.33,652.87,1.13018886]
[1740075563522,3.10994739,653.32,652.87,1.13018886]
[1740075563721,2.22040187,653.33,652.87,1.13018886]
[1740075563922,3.10993304,653.32,652.87,1.13018886]
[1740075564118,3.10993304,653.31,652.87,1.13018886]
[1740075564324,3.10993304,653.3,652.92,1.13018886]
[1740075564518,2.22040187,653.3,652.92,1.13018886]
[1740075564721,3.11020018,653.29,652.92,1.13018886]
[1740075564920,2.22040187,653.3,652.92,1.13018886]
[1740075566123,3.11050305,653.29,652.92,1.13018886]
[1740075566325,3.214,653.63,652.92,1.13018886]
[1740075566524,3.1105191,653.62,652.92,1.13018886]
[1740075566725,3.1105191,653.61,652.92,1.13018886]
[1740075567024,3.214,653.63,652.49,0.3065181]
[1740075567025,3.1105191,653.6,653.07,1.13018886]
[1740075567318,3.1105191,653.59,653.07,1.13018886]
[1740075567523,3.1105191,653.58,653.07,1.13018886]
[1740075567724,3.1105191,653.57,653.07,1.13018886]
[1740075567925,3.1105191,653.56,653.07,1.13018886]
[1740075568224,3.1105191,653.55,653.07,1.13018886]
[1740075568423,2.22097912,653.6,653.07,1.13018886]
[1740075568424,3.1105191,653.54,653.07,1.13018886]
[1740075568625,3.1105191,653.53,653.07,1.13018886]
[1740075568826,3.1105191,653.52,653.07,1.13018886]
[1740075569026,3.1105191,653.51,653.07,1.13018886]
[1740075569228,1.372,653.63,653.07,1.13018886]
[1740075569229,3.1105191,653.5,653.07,1.13018886]
[1740075569424,3.1105191,653.49,653.07,1.13018886]
[1740075569727,3.1105191,653.48,653.07,1.13018886]
[1740075569928,3.1105191,653.48,652.53,2.30642502]
[1740075569929,3.1105191,653.47,652.99,1.13018886]
[1740075570128,3.1105191,653.46,652.99,1.13018886]
[1740075570329,3.1105191,653.45,652.99,1.13018886]
[1740075570525,3.1105191,653.44,652.99,1.13018886]
[1740075570724,3.1105191,653.43,652.99,1.13018886]
[1740075571025,3.1105191,653.42,652.99,1.13018886]
[1740075571328,3.1105191,653.41,652.99,1.13018886]
[1740075571629,3.1105191,653.4,652.99,1.13018886]
[1740075571830,3.1105191,653.39,652.99,1.13018886]
[1740075572024,3.1105191,653.38,652.99,1.13018886]
[1740075572231,3.1105191,653.38,652.46,1.35561307]
[1740075572232,3.1105191,653.37,653.02,1.13018886]
[1740075572431,3.1105191,653.36,653.02,1.13018886]
[1740075572732,3.1105191,653.35,653.02,1.13018886]
[1740075573031,3.1105191,653.34,653.02,1.13018886]
[1740075573231,3.1105191,653.33,653.02,1.13018886]
[1740075573532,3.1105191,653.32,653.02,1.13018886]
[1740075573730,5.33149822,653.31,653.02,1.13018886]
[1740075573928,3.11091757,653.3,653.02,1.13018886]
[1740075574133,2.22097912,653.31,653.02,1.13018886]
[1740075574334,3.11102112,653.3,653.02,1.13018886]
[1740075574532,2.22097912,653.31,653.02,1.13018886]
[1740075574734,3.11105247,653.3,653.01,1.13018886]
[1740075575032,3.11103407,653.29,653.01,1.13018886]
[1740075575332,1.372,653.63,653.01,1.13018886]
[1740075575533,3.11107425,653.62,653.01,1.13018886]
[1740075575831,3.11107425,653.61,653.01,1.13018886]
[1740075576033,3.11107425,653.6,653.01,1.13018886]
[1740075576233,3.11107425,653.59,653.01,1.13018886]
[1740075576433,3.11107425,653.58,653.01,1.13018886]
[1740075576730,3.11107425,653.57,653.01,1.13018886]
[1740075576934,3.11107425,653.56,653.01,1.13018886]
[1740075577128,3.11107425,653.55,653.01,1.13018886]
[1740075577328,3.11107425,653.54,653.01,1.13018886]
[1740075577632,3.11107425,653.53,653.01,1.13018886]
[1740075577826,2.2213096,653.61,653.01,1.13018886]
[1740075577827,3.11107425,653.52,653.01,1.13018886]
[1740075578031,3.11107425,653.51,653.01,1.13018886]
[1740075578227,3.11107425,653.5,653.01,1.13018886]
[1740075578427,2.2213096,653.53,653.01,1.13018886]
[1740075578428,3.11107425,653.49,653.01,1.13018886]
[1740075578630,2.2213096,653.53,653.01,1.13018886]
[1740075578631,3.11107425,653.48,653.01,1.13018886]
[1740075578832,3.11107425,653.47,653.01,1.13018886]
[1740075579032,3.11107425,653.47,652.33,2.30642502]
[1740075579033,3.11107425,653.46,652.88,1.13018886]
[1740075579233,3.11107425,653.45,652.88,1.13018886]
[1740075579432,3.11107425,653.44,652.88,1.13018886]
[1740075579636,3.11107425,653.43,652.88,1.13018886]
[1740075579828,3.11107425,653.42,652.88,1.13018886]
[1740075580032,3.11107425,653.41,652.88,1.13018886]
[1740075580232,2.2213096,653.46,652.88,1.13018886]
[1740075580432,3.11037846,653.45,652.88,1.13018886]
[1740075580632,3.11037846,653.44,652.88,1.13018886]
[1740075580828,3.11037846,653.43,652.88,1.13018886]
[1740075581135,3.11037846,653.42,652.88,1.13018886]
[1740075581343,2.2213096,653.42,652.88,1.13018886]
[1740075583433,1.372,653.63,652.88,1.13018886]
[1740075583633,3.1099865,653.62,652.88,1.13018886]
[1740075583935,3.1099865,653.61,653.04,1.13018886]
[1740075584135,3.1099865,653.6,653.04,1.13018886]
[1740075584435,3.1099865,653.59,653.04,1.13018886]
[1740075584634,3.1099865,653.58,653.04,1.13018886]
[1740075584835,3.1099865,653.57,653.04,1.13018886]
[1740075585030,3.1099865,653.56,653.04,1.13018886]
[1740075585236,3.1099865,653.55,653.04,1.13018886]
[1740075585536,3.1099865,653.54,653.04,1.13018886]
[1740075585736,3.1099865,653.53,653.04,1.13018886]
[1740075586038,3.1099865,653.52,653.04,1.13018886]
[1740075586237,3.1099865,653.51,653.04,1.13018886]
[1740075586439,3.1099865,653.5,653.04,1.13018886]
[1740075586638,3.1099865,653.49,653.04,1.13018886]
[1740075586837,3.1099865,653.48,653.04,1.13018886]
[1740075587039,3.1099865,653.47,653.03,1.13018886]
[1740075587337,2.2204295,653.54,653.03,1.13018886]
[1740075587933,1.283,653.79,653.03,1.13018886]
[1740075588138,3.10794681,653.78,653.03,1.13018886]
[1740075588336,3.10794681,653.77,653.03,1.13018886]
[1740075588534,3.10794681,653.76,653.03,1.13018886]
[1740075588740,3.10794681,653.75,653.03,1.13018886]
[1740075588939,3.10794681,653.74,653.03,1.13018886]
[1740075589140,3.10794681,653.73,653.03,1.13018886]
[1740075589435,3.10794681,653.72,653.03,1.13018886]
[1740075589639,3.10794681,653.71,653.03,1.13018886]
[1740075589840,3.10794681,653.7,653.03,1.13018886]
[1740075590041,2.21872805,653.77,653.03,1.13018886]
[1740075590042,3.10794681,653.69,653.03,1.13018886]
[1740075590233,3.10794681,653.68,653.03,1.13018886]
[1740075590438,3.10794681,653.67,653.03,1.13018886]
[1740075590641,3.10794681,653.66,653.03,1.13018886]
[1740075590841,3.10794681,653.65,653.0,1.13018886]
[1740075591041,3.10794681,653.64,653.0,1.13018886]
[1740075591241,3.10794681,653.63,653.0,1.13018886]
[1740075591541,3.10794681,653.62,653.0,1.13018886]
[1740075591740,3.10794681,653.61,653.0,1.13018886]
[1740075591940,2.21872805,653.69,653.0,1.13018886]
[1740075592240,3.10376435,653.68,653.0,1.13018886]
[1740075592438,3.10376435,653.67,652.95,1.13018886]
[1740075592634,3.10376435,653.66,652.95,1.13018886]
[1740075592941,3.10376435,653.65,652.95,1.13018886]
[1740075593239,3.10376435,653.64,652.95,1.13018886]
[1740075593435,3.10376435,653.63,652.95,1.13018886]
[1740075593640,3.10376435,653.62,652.95,1.13018886]
[1740075593838,3.10376435,653.61,652.95,1.13018886]
[1740075594039,3.10376435,653.6,652.95,1.13018886]